[Event "NJSK 2022 Meisjes C"]
[Site "Almelo, Netherlands"]
[Date "2022.05.04"]
[Round "4.6"]
[White "Roebers, Bregje"]
[Black "De Bruijne, Marlies"]
[Result "1-0"]
[TimeControl "90min/40moves + 30min + 30sec/move"]
[WhiteElo "1214"]
[BlackElo "858"]

1. e4 {[%clk 01:30:58]} e5 {[%clk 01:30:54]} {[%emt 00:00:07]} 2. Nf3 {[%clk
01:31:22]} {[%emt 00:00:06]} Nc6 {[%clk 01:31:14]} {[%emt 00:00:10]} 3. d4
{[%clk 01:31:41]} {[%emt 00:00:11]} exd4 {[%clk 01:31:19]} {[%emt 00:00:26]} 4.
Nxd4 {[%clk 01:32:01]} {[%emt 00:00:09]} Nf6 {[%clk 01:30:52]} {[%emt
00:00:57]} 5. Nc3 {[%clk 01:31:34]} {[%emt 00:00:57]} Bb4 {[%clk 01:30:12]}
{[%emt 00:01:10]} 6. Nxc6 {[%clk 01:29:31]} {[%emt 00:02:33]} bxc6 {[%clk
01:30:25]} {[%emt 00:00:17]} 7. Bd3 {[%clk 01:27:20]} {[%emt 00:02:42]} O-O
{[%clk 01:28:20]} {[%emt 00:02:35]} 8. O-O {[%clk 01:27:30]} {[%emt 00:00:20]}
d5 {[%clk 01:27:35]} {[%emt 00:01:15]} 9. exd5 {[%clk 01:25:11]} {[%emt
00:02:49]} cxd5 {[%clk 01:27:22]} {[%emt 00:00:42]} 10. Bd2 {[%clk 01:23:44]}
{[%emt 00:01:57]} a5 {[%clk 01:25:14]} {[%emt 00:02:38]} 11. h3 {[%clk
01:22:30]} {[%emt 00:01:44]} Ba6 {[%clk 01:21:42]} {[%emt 00:04:02]} 12. a3
{[%clk 01:17:10]} {[%emt 00:05:51]} Bxd3 {[%clk 01:19:07]} {[%emt 00:03:04]} 13.
cxd3 {[%clk 01:17:26]} {[%emt 00:00:14]} Bxc3 {[%clk 01:16:43]} {[%emt
00:02:54]} 14. Bxc3 {[%clk 01:17:46]} {[%emt 00:00:09]} d4 {[%clk 01:11:43]}
{[%emt 00:05:30]} 15. Bd2 {[%clk 01:17:39]} {[%emt 00:00:38]} Re8 {[%clk
01:07:19]} {[%emt 00:04:55]} 16. b4 {[%clk 01:16:16]} {[%emt 00:01:53]} a4
{[%clk 01:04:42]} {[%emt 00:03:06]} 17. Bf4 {[%clk 01:13:46]} {[%emt 00:03:00]}
Nd5 {[%clk 01:02:47]} {[%emt 00:02:26]} 18. Bd2 {[%clk 01:12:18]} {[%emt
00:01:57]} Qd7 {[%clk 00:59:53]} {[%emt 00:03:24]} 19. Qg4 {[%clk 01:08:21]}
{[%emt 00:04:27]} Qxg4 {[%clk 01:00:05]} {[%emt 00:00:18]} 20. hxg4 {[%clk
01:08:43]} {[%emt 00:00:07]} Rac8 {[%clk 00:55:45]} {[%emt 00:04:51]} 21. Rfe1
{[%clk 01:05:45]} {[%emt 00:03:28]} h6 {[%clk 00:53:41]} {[%emt 00:02:34]} 22.
Kf1 {[%clk 01:04:02]} {[%emt 00:02:13]} Re7 {[%clk 00:52:44]} {[%emt 00:01:27]}
23. Rac1 {[%clk 00:59:50]} {[%emt 00:04:42]} Rxe1+ {[%clk 00:50:36]} {[%emt
00:02:37]} 24. Rxe1 {[%clk 01:00:03]} {[%emt 00:00:18]} Nf6 {[%clk 00:48:59]}
{[%emt 00:02:07]} 25. f3 {[%clk 00:58:51]} {[%emt 00:01:41]} g5 {[%clk
00:48:01]} {[%emt 00:01:28]} 26. Rc1 {[%clk 00:56:58]} {[%emt 00:02:24]} Nd7
{[%clk 00:47:54]} {[%emt 00:00:36]} 27. Rc4 {[%clk 00:49:44]} {[%emt 00:07:46]}
Nb6 {[%clk 00:46:31]} {[%emt 00:01:52]} 28. Rxd4 {[%clk 00:47:40]} {[%emt
00:02:34]} Kg7 {[%clk 00:45:45]} {[%emt 00:01:16]} 29. Ke2 {[%clk 00:44:11]}
{[%emt 00:03:59]} Re8+ {[%clk 00:44:17]} {[%emt 00:01:58]} 30. Re4 {[%clk
00:44:03]} {[%emt 00:00:38]} Rxe4+ {[%clk 00:44:06]} {[%emt 00:00:41]} 31. dxe4
{[%clk 00:43:12]} {[%emt 00:01:21]} Nc4 {[%clk 00:43:40]} {[%emt 00:00:56]} 32.
Bc1 {[%clk 00:42:53]} {[%emt 00:00:49]} c6 {[%clk 00:42:12]} {[%emt 00:01:58]}
33. Kd3 {[%clk 00:42:27]} {[%emt 00:00:55]} Nd6 {[%clk 00:41:58]} {[%emt
00:00:45]} 34. Bb2+ {[%clk 00:42:02]} {[%emt 00:00:56]} f6 {[%clk 00:41:15]}
{[%emt 00:01:12]} 35. e5 {[%clk 00:40:47]} {[%emt 00:01:45]} Ne8 {[%clk
00:41:31]} {[%emt 00:00:15]} 36. exf6+ {[%clk 00:41:01]} {[%emt 00:00:16]} Nxf6
{[%clk 00:41:37]} {[%emt 00:00:23]} 37. Bxf6+ {[%clk 00:41:22]} {[%emt
00:00:08]} Kxf6 {[%clk 00:42:04]} {[%emt 00:00:04]} 38. Ke4 {[%clk 00:41:35]}
{[%emt 00:00:18]} Ke6 {[%clk 00:41:26]} {[%emt 00:01:07]} 39. Kd4 {[%clk
00:41:04]} {[%emt 00:01:02]} Kd6 {[%clk 00:41:29]} {[%emt 00:00:26]} 40. g3
{[%clk 00:41:05]} {[%emt 00:00:29]} Ke6 {[%clk 00:39:31]} {[%emt 00:02:28]} 41.
f4 {[%clk 00:40:58]} {[%emt 00:00:37]} Kd6 {[%clk 00:38:51]} {[%emt 00:01:11]}
42. f5 {[%clk 00:40:58]} {[%emt 00:00:30]} Ke7 {[%clk 00:38:41]} {[%emt
00:00:40]} 43. Ke5 {[%clk 00:41:19]} {[%emt 00:00:08]} h5 {[%clk 00:36:12]}
{[%emt 00:02:59]} 44. gxh5 {[%clk 00:41:40]} {[%emt 00:00:09]} g4 {[%clk
00:36:17]} {[%emt 00:00:25]} 45. h6 {[%clk 00:41:58]} {[%emt 00:00:12]} Kf7
{[%clk 00:36:31]} {[%emt 00:00:16]} 46. f6 {[%clk 00:42:02]} {[%emt 00:00:25]}
c5 {[%clk 00:36:22]} {[%emt 00:00:41]} 47. bxc5 {[%clk 00:42:23]} {[%emt
00:00:09]} Kg8 {[%clk 00:35:54]} {[%emt 00:00:56]} 48. Ke6 {[%clk 00:42:36]}
{[%emt 00:00:17]} Kh7 {[%clk 00:35:59]} {[%emt 00:00:26]} 49. f7 {[%clk
00:42:52]} {[%emt 00:00:14]} Kg6 {[%clk 00:35:45]} {[%emt 00:00:44]} 50. f8=Q
{[%clk 00:42:39]} {[%emt 00:00:42]} Kh5 {[%clk 00:35:36]} {[%emt 00:00:38]} 51.
h7 {[%clk 00:41:58]} {[%emt 00:01:13]} Kg6 {[%clk 00:34:44]} {[%emt 00:01:22]}
52. Qg8 {[%clk 00:42:16]} {[%emt 00:00:12]} Kh6 {[%clk 00:35:00]} {[%emt
00:00:14]} 53. h8=R {[%clk 00:41:48]} {[%emt 00:00:11]} 1-0

[Event "NJSK 2022 Meisjes C"]
[Site "Almelo, Netherlands"]
[Date "2022.05.04"]
[Round "4.7"]
[White "Tunyluhulima, Serana"]
[Black "Verbunt, Lisa"]
[Result "1-0"]
[TimeControl "90min/40moves + 30min + 30sec/move"]
[WhiteElo "1617"]
[BlackElo "807"]

1. e4 {[%clk 01:30:58]} {[%emt 00:00:01]} e5 {[%clk 01:30:56]} {[%emt
00:00:04]} 2. Nf3 {[%clk 01:31:22]} {[%emt 00:00:06]} Nc6 {[%clk 01:31:21]}
{[%emt 00:00:05]} 3. Nc3 {[%clk 01:31:33]} {[%emt 00:00:19]} Bc5 {[%clk
01:31:23]} {[%emt 00:00:28]} 4. Bb5 {[%clk 01:31:26]} {[%emt 00:00:38]} a6
{[%clk 01:30:38]} {[%emt 00:01:14]} 5. Bxc6 {[%clk 01:29:02]} {[%emt 00:02:54]}
dxc6 {[%clk 01:30:16]} {[%emt 00:00:52]} 6. Nxe5 {[%clk 01:28:44]} {[%emt
00:00:48]} Qf6 {[%clk 01:30:13]} {[%emt 00:00:32]} 7. Nd3 {[%clk 01:27:14]}
{[%emt 00:02:01]} Ba7 {[%clk 01:29:53]} {[%emt 00:00:50]} 8. b3 {[%clk
01:26:26]} {[%emt 00:01:17]} Ne7 {[%clk 01:27:49]} {[%emt 00:02:35]} 9. Bb2
{[%clk 01:26:01]} {[%emt 00:00:56]} Bd4 {[%clk 01:27:27]} {[%emt 00:00:51]} 10.
O-O {[%clk 01:23:04]} {[%emt 00:03:27]} c5 {[%clk 01:24:37]} {[%emt 00:03:21]}
11. Re1 {[%clk 01:18:16]} {[%emt 00:05:17]} Nc6 {[%clk 01:22:52]} {[%emt
00:02:15]} 12. Nd5 {[%clk 01:17:26]} {[%emt 00:01:20]} Qd6 {[%clk 01:20:29]}
{[%emt 00:02:52]} 13. c4 {[%clk 01:13:05]} {[%emt 00:04:52]} Bxb2 {[%clk
01:19:49]} {[%emt 00:01:09]} 14. Nxb2 {[%clk 01:13:09]} {[%emt 00:00:27]} O-O
{[%clk 01:19:48]} {[%emt 00:00:31]} 15. Nd3 {[%clk 01:12:09]} {[%emt 00:01:30]}
Re8 {[%clk 01:19:12]} {[%emt 00:01:06]} 16. Qh5 {[%clk 01:11:34]} {[%emt
00:01:04]} Ne5 {[%clk 01:17:25]} {[%emt 00:02:19]} 17. Nxe5 {[%clk 01:08:35]}
{[%emt 00:03:28]} Rxe5 {[%clk 01:17:29]} {[%emt 00:00:26]} 18. Qh4 {[%clk
01:06:15]} {[%emt 00:02:51]} b6 {[%clk 01:14:00]} {[%emt 00:03:59]} 19. Rad1
{[%clk 01:04:48]} {[%emt 00:01:57]} Bb7 {[%clk 01:13:39]} {[%emt 00:00:50]} 20.
d4 {[%clk 01:04:34]} {[%emt 00:00:44]} cxd4 {[%clk 01:13:46]} {[%emt 00:00:23]}
21. Rxd4 {[%clk 01:04:53]} {[%emt 00:00:11]} c5 {[%clk 01:13:22]} {[%emt
00:00:54]} 22. Rd3 {[%clk 01:03:28]} {[%emt 00:01:53]} Rae8 {[%clk 01:12:45]}
{[%emt 00:01:09]} 23. Rg3 {[%clk 01:00:33]} {[%emt 00:03:25]} Qe6 {[%clk
01:10:01]} {[%emt 00:03:15]} 24. Nf6+ {[%clk 01:00:33]} {[%emt 00:00:28]} Kf8
{[%clk 01:09:42]} {[%emt 00:00:51]} 25. Nxe8 {[%clk 00:59:02]} {[%emt
00:02:01]} Qxe8 {[%clk 01:09:08]} {[%emt 00:01:03]} 26. Qxh7 {[%clk 00:57:53]}
{[%emt 00:01:40]} Qd7 {[%clk 01:07:17]} {[%emt 00:02:21]} 27. Qxg7+ {[%clk
00:58:05]} {[%emt 00:00:16]} Ke8 {[%clk 01:07:01]} {[%emt 00:00:48]} 28. Qxe5+
{[%clk 00:58:23]} {[%emt 00:00:12]} Kf8 {[%clk 01:06:40]} {[%emt 00:00:50]} 29.
h3 {[%clk 00:57:40]} {[%emt 00:01:13]} b5 {[%clk 01:06:42]} {[%emt 00:00:29]}
30. Qxc5+ {[%clk 00:57:44]} {[%emt 00:00:25]} Ke8 {[%clk 01:06:56]} {[%emt
00:00:16]} 31. Rg8# {[%clk 00:58:00]} {[%emt 00:00:14]} 1-0

[Event "NJSK 2022 Meisjes C"]
[Site "Almelo, Netherlands"]
[Date "2022.05.04"]
[Round "4.8"]
[White "Yildirim, Azra"]
[Black "Koorevaar, Sarah-Joy"]
[Result "1-0"]
[TimeControl "90min/40moves + 30min + 30sec/move"]
[WhiteElo "985"]
[BlackElo "849"]

1. e4 {[%clk 01:30:56]} {[%emt 00:00:04]} c5 {[%clk 01:30:56]} {[%emt
00:00:05]} 2. Nf3 {[%clk 01:28:11]} {[%emt 00:03:14]} Nc6 {[%clk 01:31:17]}
{[%emt 00:00:10]} 3. c3 {[%clk 01:26:21]} {[%emt 00:02:20]} e5 {[%clk
01:29:34]} {[%emt 00:02:11]} 4. d4 {[%clk 01:24:20]} {[%emt 00:02:31]} Bd6
{[%clk 01:28:30]} {[%emt 00:01:33]} 5. Bb5 {[%clk 01:22:54]} {[%emt 00:01:57]}
Qe7 {[%clk 01:25:00]} {[%emt 00:03:58]} 6. Bxc6 {[%clk 01:20:20]} {[%emt
00:03:07]} dxc6 {[%clk 01:23:58]} {[%emt 00:01:32]} 7. O-O {[%clk 01:20:01]}
{[%emt 00:00:48]} Bg4 {[%clk 01:23:29]} {[%emt 00:01:00]} 8. Nbd2 {[%clk
01:16:48]} {[%emt 00:03:44]} exd4 {[%clk 01:22:42]} {[%emt 00:01:16]} 9. cxd4
{[%clk 01:14:50]} {[%emt 00:02:28]} cxd4 {[%clk 01:22:45]} {[%emt 00:00:27]} 10.
Qb3 {[%clk 01:14:53]} {[%emt 00:00:27]} Nf6 {[%clk 01:20:33]} {[%emt 00:02:42]}
11. e5 {[%clk 01:13:55]} {[%emt 00:01:28]} Bxe5 {[%clk 01:20:00]} {[%emt
00:01:03]} 12. Nxe5 {[%clk 01:13:52]} {[%emt 00:00:34]} Qxe5 {[%clk 01:20:21]}
{[%emt 00:00:07]} 13. Qxb7 {[%clk 01:13:38]} {[%emt 00:00:45]} O-O {[%clk
01:19:24]} {[%emt 00:01:27]} 14. Qxc6 {[%clk 01:11:32]} {[%emt 00:02:36]} Rfe8
{[%clk 01:17:55]} {[%emt 00:01:58]} 15. Nf3 {[%clk 01:11:09]} {[%emt 00:00:54]}
Bxf3 {[%clk 01:17:42]} {[%emt 00:00:43]} 16. Qxf3 {[%clk 01:11:19]} {[%emt
00:00:20]} Qe1 {[%clk 01:17:13]} {[%emt 00:00:59]} 17. Bg5 {[%clk 01:09:57]}
{[%emt 00:01:52]} Qe2 {[%clk 01:15:20]} {[%emt 00:02:20]} 18. Qb7 {[%clk
01:07:17]} {[%emt 00:03:13]} d3 {[%clk 01:14:50]} {[%emt 00:01:00]} 19. Rad1
{[%clk 01:05:29]} {[%emt 00:02:18]} Ne4 {[%clk 01:12:40]} {[%emt 00:02:38]} 20.
Rde1 {[%clk 01:04:42]} {[%emt 00:01:19]} Nc5 {[%clk 01:07:35]} {[%emt
00:05:32]} 21. Qxa8 {[%clk 01:01:02]} {[%emt 00:04:12]} Rxa8 {[%clk 01:06:19]}
{[%emt 00:01:47]} 22. Rxe2 {[%clk 01:00:52]} {[%emt 00:00:40]} dxe2 {[%clk
01:06:38]} {[%emt 00:00:11]} 23. Re1 {[%clk 01:00:13]} {[%emt 00:01:08]} Re8
{[%clk 01:06:55]} {[%emt 00:00:13]} 24. Be3 {[%clk 00:57:12]} {[%emt 00:03:32]}
Nd3 {[%clk 01:06:43]} {[%emt 00:00:42]} 25. Rxe2 {[%clk 00:57:08]} {[%emt
00:00:34]} f5 {[%clk 01:06:13]} {[%emt 00:01:00]} 26. Rd2 {[%clk 00:56:10]}
{[%emt 00:01:28]} Ne5 {[%clk 01:05:45]} {[%emt 00:00:56]} 27. Bxa7 {[%clk
00:55:12]} {[%emt 00:01:29]} f4 {[%clk 01:04:47]} {[%emt 00:01:28]} 28. f3
{[%clk 00:53:52]} {[%emt 00:01:51]} Ra8 {[%clk 01:03:43]} {[%emt 00:01:25]} 29.
Bd4 {[%clk 00:51:02]} {[%emt 00:03:29]} Nc6 {[%clk 01:03:39]} {[%emt 00:00:33]}
30. a3 {[%clk 00:50:54]} {[%emt 00:00:39]} Na5 {[%clk 01:02:41]} {[%emt
00:01:26]} 31. Kf2 {[%clk 00:49:02]} {[%emt 00:02:24]} Nb3 {[%clk 00:59:51]}
{[%emt 00:03:19]} 32. Rd3 {[%clk 00:48:39]} {[%emt 00:00:54]} Rd8 {[%clk
00:58:12]} {[%emt 00:02:08]} 33. Rxb3 {[%clk 00:48:16]} {[%emt 00:00:53]} Rxd4
{[%clk 00:58:38]} {[%emt 00:00:04]} 34. Rb8+ {[%clk 00:47:42]} {[%emt
00:01:05]} Kf7 {[%clk 00:58:51]} {[%emt 00:00:15]} 35. b4 {[%clk 00:47:55]}
{[%emt 00:00:19]} Rd2+ {[%clk 00:57:31]} {[%emt 00:01:49]} 36. Ke1 {[%clk
00:48:01]} {[%emt 00:00:25]} Rxg2 {[%clk 00:57:47]} {[%emt 00:00:13]} 37. b5
{[%clk 00:47:23]} {[%emt 00:01:10]} Kg6 {[%clk 00:57:12]} {[%emt 00:00:59]} 38.
Rf8 {[%clk 00:46:17]} {[%emt 00:01:41]} Kg5 {[%clk 00:54:10]} {[%emt 00:03:32]}
39. h4+ {[%clk 00:45:49]} {[%emt 00:00:58]} Kxh4 {[%clk 00:53:20]} {[%emt
00:01:19]} 40. Rxf4+ {[%clk 00:46:12]} {[%emt 00:00:08]} Kg3 {[%clk 00:52:46]}
{[%emt 00:01:03]} 41. Rg4+ {[%clk 00:46:05]} {[%emt 00:00:37]} Kxf3 {[%clk
00:52:25]} {[%emt 00:00:51]} 42. Rxg2 {[%clk 00:46:27]} {[%emt 00:00:09]} Kxg2
{[%clk 00:52:46]} {[%emt 00:00:08]} 43. b6 {[%clk 00:46:55]} {[%emt 00:00:02]}
h5 {[%emt 00:00:13]} 44. b7 {[%clk 00:47:15]} {[%emt 00:00:10]} h4 {[%clk
00:52:48]} {[%emt 00:00:46]} 45. b8=Q {[%clk 00:47:29]} {[%emt 00:00:14]} h3
{[%clk 00:52:54]} {[%emt 00:00:26]} 46. Qf8 {[%clk 00:47:36]} {[%emt 00:00:23]}
h2 {[%clk 00:51:13]} {[%emt 00:02:10]} 47. Qf2+ {[%clk 00:47:50]} {[%emt
00:00:17]} Kh3 {[%clk 00:50:04]} {[%emt 00:01:39]} 48. Qf3+ {[%clk 00:48:15]}
{[%emt 00:00:05]} Kh4 {[%clk 00:50:20]} {[%emt 00:00:12]} 49. Qf4+ {[%clk
00:48:44]} {[%emt 00:00:02]} Kh3 {[%clk 00:50:03]} {[%emt 00:00:47]} 50. Kf2
{[%clk 00:49:06]} {[%emt 00:00:09]} h1=N+ {[%clk 00:49:11]} {[%emt 00:01:22]}
51. Kf3 {[%clk 00:49:24]} {[%emt 00:00:43]} g6 {[%clk 00:48:59]} {[%emt
00:01:10]} 52. Qh6 {[%clk 00:49:41]} {[%emt 00:00:13]} 1-0

[Event "NJSK 2022 Meisjes C"]
[Site "Almelo, Netherlands"]
[Date "2022.05.04"]
[Round "4.9"]
[White "Hagen, Carlijn"]
[Black "Jonkman, Sophia"]
[Result "1-0"]
[TimeControl "90min/40moves + 30min + 30sec/move"]
[WhiteElo "783"]
[BlackElo "1417"]

1. e4 {[%clk 01:30:57]} {[%emt 00:00:02]} e6 {[%clk 01:30:57]} {[%emt
00:00:05]} 2. d4 {[%clk 01:31:18]} {[%emt 00:00:08]} d5 {[%clk 01:31:18]}
{[%emt 00:00:10]} 3. e5 {[%clk 01:31:30]} {[%emt 00:00:17]} c5 {[%clk
01:31:27]} {[%emt 00:00:21]} 4. dxc5 {[%clk 01:30:43]} {[%emt 00:01:18]} Bxc5
{[%clk 01:31:39]} {[%emt 00:00:17]} 5. Nf3 {[%clk 01:30:37]} {[%emt 00:00:36]}
Nc6 {[%clk 01:29:57]} {[%emt 00:02:13]} 6. Bb5 {[%clk 01:29:10]} {[%emt
00:01:56]} Qa5+ {[%clk 01:29:19]} {[%emt 00:01:08]} 7. Nc3 {[%clk 01:28:48]}
{[%emt 00:00:52]} Bd7 {[%clk 01:25:13]} {[%emt 00:04:36]} 8. Bxc6 {[%clk
01:27:54]} {[%emt 00:01:24]} Bxc6 {[%clk 01:23:58]} {[%emt 00:01:45]} 9. a3
{[%clk 01:26:28]} {[%emt 00:01:56]} f5 {[%clk 01:12:09]} {[%emt 00:12:19]} 10.
O-O {[%clk 01:21:41]} {[%emt 00:05:16]} Ne7 {[%clk 00:58:33]} {[%emt 00:14:06]}
11. Bg5 {[%clk 01:18:23]} {[%emt 00:03:49]} Qc7 {[%clk 00:52:04]} {[%emt
00:07:00]} 12. b4 {[%clk 01:14:04]} {[%emt 00:04:49]} h6 {[%clk 00:46:47]}
{[%emt 00:05:46]} 13. bxc5 {[%clk 01:03:19]} {[%emt 00:11:14]} hxg5 {[%clk
00:44:16]} {[%emt 00:03:02]} 14. Re1 {[%clk 01:01:32]} {[%emt 00:02:16]} Qa5
{[%clk 00:34:07]} {[%emt 00:10:40]} 15. Ne2 {[%clk 00:57:02]} {[%emt 00:05:00]}
Qxc5 {[%clk 00:30:17]} {[%emt 00:04:20]} 16. Nxg5 {[%clk 00:56:20]} {[%emt
00:01:11]} d4 {[%clk 00:22:14]} {[%emt 00:08:34]} 17. Nxe6 {[%clk 00:52:06]}
{[%emt 00:04:44]} Qxe5 {[%clk 00:20:52]} {[%emt 00:01:52]} 18. Ng3 {[%clk
00:51:33]} {[%emt 00:01:03]} Qd6 {[%clk 00:14:42]} {[%emt 00:06:40]} 19. h3
{[%clk 00:47:21]} {[%emt 00:04:42]} Kf7 {[%clk 00:13:54]} {[%emt 00:01:18]} 20.
Ng5+ {[%clk 00:47:07]} {[%emt 00:00:41]} Kf6 {[%clk 00:12:55]} {[%emt
00:01:32]} 21. Re6+ {[%clk 00:47:17]} {[%emt 00:00:20]} Qxe6 {[%clk 00:12:06]}
{[%emt 00:01:19]} 22. Nxe6 {[%clk 00:47:38]} {[%emt 00:00:09]} Kxe6 {[%clk
00:12:31]} {[%emt 00:00:05]} 23. Qxd4 {[%clk 00:47:36]} {[%emt 00:00:32]} Kf7
{[%clk 00:12:13]} {[%emt 00:00:49]} 24. Re1 {[%clk 00:46:56]} {[%emt 00:01:08]}
Rad8 {[%clk 00:12:16]} {[%emt 00:00:27]} 25. Qxa7 {[%clk 00:44:31]} {[%emt
00:02:56]} Rd2 {[%clk 00:09:44]} {[%emt 00:03:03]} 26. Qe3 {[%clk 00:43:37]}
{[%emt 00:01:23]} Rd7 {[%clk 00:09:32]} {[%emt 00:00:43]} 27. Nxf5 {[%clk
00:43:01]} {[%emt 00:01:05]} Re8 {[%clk 00:05:55]} {[%emt 00:04:07]} 28. Nxe7
{[%clk 00:43:15]} {[%emt 00:00:16]} Rexe7 {[%clk 00:05:42]} {[%emt 00:00:43]}
29. Qb3+ {[%clk 00:42:45]} {[%emt 00:00:57]} Kf8 {[%clk 00:05:24]} {[%emt
00:00:51]} 30. Rxe7 {[%clk 00:42:14]} {[%emt 00:01:00]} Rd1+ {[%clk 00:03:30]}
{[%emt 00:02:25]} 31. Kh2 {[%clk 00:42:06]} {[%emt 00:00:37]} Kxe7 {[%clk
00:03:53]} {[%emt 00:00:08]} 32. c4 {[%clk 00:41:58]} {[%emt 00:00:37]} Rd2
{[%clk 00:03:00]} {[%emt 00:01:24]} 33. Qe3+ {[%clk 00:42:20]} {[%emt
00:00:08]} Ke6 {[%emt 00:01:34]} 1-0

[Event "NJSK 2022 Meisjes C"]
[Site "Almelo, Netherlands"]
[Date "2022.05.05"]
[Round "5.1"]
[White "Maris, Lauri"]
[Black "Feng, Elysia"]
[Result "1-0"]
[TimeControl "90min/40moves + 30min + 30sec/move"]
[WhiteElo "1619"]
[BlackElo "1641"]

1. e4 {[%clk 01:30:58]} {[%emt 00:00:02]} e5 {[%clk 01:30:56]} {[%emt
00:00:04]} 2. Nf3 {[%clk 01:31:22]} {[%emt 00:00:06]} Nc6 {[%clk 01:31:22]}
{[%emt 00:00:04]} 3. Bc4 {[%clk 01:31:47]} {[%emt 00:00:05]} Bc5 {[%clk
01:31:49]} {[%emt 00:00:03]} 4. Nc3 {[%clk 01:32:05]} {[%emt 00:00:12]} Nf6
{[%clk 01:32:15]} {[%emt 00:00:05]} 5. d3 {[%clk 01:32:24]} {[%emt 00:00:10]}
d6 {[%clk 01:32:41]} {[%emt 00:00:03]} 6. h3 {[%clk 01:31:05]} {[%emt
00:01:49]} Be6 {[%clk 01:32:25]} {[%emt 00:00:46]} 7. Bb3 {[%clk 01:31:03]}
{[%emt 00:00:32]} h6 {[%clk 01:32:38]} {[%emt 00:00:17]} 8. O-O {[%clk
01:30:53]} {[%emt 00:00:40]} Qd7 {[%clk 01:31:12]} {[%emt 00:01:56]} 9. Kh2
{[%clk 01:30:51]} {[%emt 00:00:31]} g5 {[%clk 01:30:43]} {[%emt 00:01:00]} 10.
Bxe6 {[%clk 01:30:48]} {[%emt 00:00:34]} Qxe6 {[%clk 01:30:54]} {[%emt
00:00:19]} 11. Na4 {[%clk 01:26:35]} {[%emt 00:04:42]} O-O-O {[%clk 01:26:38]}
{[%emt 00:04:46]} 12. Nxc5 {[%clk 01:26:35]} {[%emt 00:00:31]} dxc5 {[%clk
01:27:04]} {[%emt 00:00:04]} 13. Nd2 {[%clk 01:24:58]} {[%emt 00:02:07]} Rdg8
{[%clk 01:16:58]} {[%emt 00:10:36]} 14. g3 {[%clk 01:24:37]} {[%emt 00:00:51]}
h5 {[%clk 01:14:11]} {[%emt 00:03:17]} 15. Nb3 {[%clk 01:24:10]} {[%emt
00:00:56]} b6 {[%clk 01:09:26]} {[%emt 00:05:16]} 16. a4 {[%clk 01:22:44]}
{[%emt 00:01:55]} Rh7 {[%clk 01:04:43]} {[%emt 00:05:13]} 17. Kg2 {[%clk
01:21:00]} {[%emt 00:02:13]} Ne7 {[%clk 00:48:52]} {[%emt 00:16:22]} 18. a5
{[%clk 01:19:41]} {[%emt 00:01:49]} Kb7 {[%clk 00:47:02]} {[%emt 00:02:21]} 19.
axb6 {[%clk 01:19:28]} {[%emt 00:00:43]} cxb6 {[%clk 00:47:15]} {[%emt
00:00:16]} 20. Rh1 {[%clk 01:15:26]} {[%emt 00:04:32]} c4 {[%clk 00:43:18]}
{[%emt 00:04:27]} 21. Nd2 {[%clk 01:13:59]} {[%emt 00:01:57]} cxd3 {[%clk
00:39:36]} {[%emt 00:04:12]} 22. cxd3 {[%clk 01:14:21]} {[%emt 00:00:08]} h4
{[%clk 00:39:04]} {[%emt 00:01:02]} 23. g4 {[%clk 01:14:36]} {[%emt 00:00:15]}
Ng6 {[%clk 00:38:46]} {[%emt 00:00:48]} 24. Nc4 {[%clk 01:14:02]} {[%emt
00:01:04]} Nf4+ {[%clk 00:38:25]} {[%emt 00:00:51]} 25. Bxf4 {[%clk 01:14:11]}
{[%emt 00:00:21]} gxf4 {[%clk 00:38:30]} {[%emt 00:00:25]} 26. f3 {[%clk
01:13:46]} {[%emt 00:00:55]} Rhh8 {[%clk 00:31:39]} {[%emt 00:07:21]} 27. Qa4
{[%clk 01:12:25]} {[%emt 00:01:51]} a5 {[%clk 00:24:51]} {[%emt 00:07:18]} 28.
Qb5 {[%clk 01:11:58]} {[%emt 00:00:55]} Nxg4 {[%clk 00:18:25]} {[%emt
00:06:59]} 29. Nxa5+ {[%clk 01:10:35]} {[%emt 00:01:53]} Kb8 {[%clk 00:17:56]}
{[%emt 00:00:58]} 30. Nc6+ {[%clk 01:10:30]} {[%emt 00:00:35]} Kb7 {[%clk
00:16:23]} {[%emt 00:02:03]} 31. Ra7+ {[%clk 01:10:22]} {[%emt 00:00:38]} Kc8
{[%clk 00:16:35]} {[%emt 00:00:18]} 32. Qa6# {[%clk 01:10:41]} {[%emt
00:00:10]} 1-0